{"text_format":"3","workbook":"xlsx","n_sheets":13,"sheets":["開始","基本功能","函數簡介","AVERAGE","MIN 和 MAX","日期和時間","合併文字和數值","IF 陳述式","VLOOKUP","條件式函數","函數精靈","公式錯誤","深入了解"],"not_rendered":{"images":30,"defined_names":21},"read":"whole","date_system":"1900"}

{"sheet":"開始","index":0,"n_rows":4,"n_cols":1,"rows_kept":4}
[]
["公式入門"]
["只需完成幾個步驟，就能充分了解如何使用 Excel 這款全球最強大的試算表 App 來建立公式和函數。"]
["按 CTRL+HOME 就能回到頁首。若要進行導覽，請按 CTRL+PAGE DOWN。"]

{"sheet":"基本功能","index":1,"n_rows":43,"n_cols":10,"rows_kept":43}
["基本功能：使用 Excel 執行數學運算"]
["您不需要使用任何內建函數就能在 Excel 中執行加、減、乘、除。您只需要使用一些基本運算子：+、-、*、/。所有公式都是以等號 (=) 做為開頭。\n",null,"要使用的數值：",null,"運算：","公式：","答案："]
["若要相加，請選取儲存格 F3，輸入 =C3+C4，然後按 Enter。 \n",null,1,null,"加 (+) ",null,{"$f":"C3+C4","v":3}]
["若要相減，請選取儲存格 F4，輸入 =C3-C4，然後按 Enter。 ",null,2,null,"減 (-) ",null,{"$f":"C3-C4","v":-1}]
["若要相乘，請選取儲存格 F5，輸入 =C3*C4，然後按 Enter。\n",{"$nulls":3},"乘 (*) ",null,{"$f":"C3*C4","v":2}]
["若要相除，請選取儲存格 F6，輸入 =C3/C4，然後按 Enter。\n",{"$nulls":3},"除 (/) ",null,{"$f":"C3/C4","v":0.5}]
["立即查看：變更儲存格 C3 和 C4 中的數值，並且關注公式結果自動變更。",{"$nulls":3},"乘冪 (^) ",null,{"$f":"C3^C4","v":1}]
["祕笈：您可以使用插入號 (^) 將值遞增到乘冪，例如 =A1^A2。使用 Shift+6 輸入此符號。在儲存格 F7 中，輸入 =C3^C4。"]
["向下瀏覽以取得更多詳細資料"]
["下一個步驟"]
["深入了解公式、儲存格和範圍"]
["Excel 是由分組成列和欄的個別儲存格所構成。列是以數字編排，而欄是以字母編排。有超過 1 百萬列和 16,000 欄，而且您可以在它們的任何一個之中放入公式。 \n"]
["公式可以包含儲存格參照、儲存格參照範圍、運算子和常數。以下是公式的所有範例：\n\n=A1+B1\n=10+20\n=SUM(A1:A10)\n\n"]
["您會發現在上方的第三個範例中，我們使用了 SUM 函數。函數是一種預先建立的命令，可取得一或多個值，以某種方式計算值，然後傳回結果。例如，SUM 函數會取得您指定的儲存格參照或範圍，然後取得它們的合計。在此範例中，它取得儲存格 A1 到 A10，然後取得它們的合計。Excel 有超過 400 個函數，您可以在 [公式] 索引標籤上瀏覽這些函數。\n"]
["含有函數的公式會以等號做為開頭，然後函數名稱的後面會接著其引數 (函數用來計算的值) 並以括弧圍繞。 \n"]
["若要確認公式，請按 Enter。這麼做之後，公式就會計算，而結果則會顯示在儲存格中。若要查看公式本身，您可以查看位於功能區下方的資料編輯列，或按 F2 以進入編輯模式，您會在這裡看到儲存格中的公式。再次按下 Enter 以完成公式並計算結果。\n\n"]
["一些公式說明"]
["=10+20 是公式，其中 10 和 20 是常數，而 + 符號是運算子。"]
["=SUM(A1:A10) 是公式，其中 SUM 是函數名稱，左括弧和右括弧包含公式引數，而 A1:A10 是函數的儲存格範圍。"]
["=SUM(A1:A10,C1:C10) 是公式，其中 SUM 是函數名稱，左括弧和右括弧包含公式引數，而 A1:A10,C1:C10 是以逗號隔開的函數儲存格範圍。"]
["不可不知：常數是您在儲存格或公式中輸入的值。雖然 =10+20 可能與 =A1+B1 的計算結果相同，但常數並不是理想的做法。為什麼？因為您需要選取儲存格並且加以尋找，才能找到常數。這會讓您日後難以進行變更。將常數放在儲存格中會簡單很多，這樣就能輕鬆調整，並在公式中參照。\n\n例如︰選取下方顯示 12 的黃色儲存格。您會發現我們在儲存格範圍中使用 SUM 函數。我們並未在公式中直接輸入 \"4\" 或 \"8\"。 \n"]
["上一個"]
["下一個"]
["Web 上的更多資訊"]
["用 Excel 當計算機"]
["Excel 中的公式概觀"]
["Excel 函數 (依類別) "]
["Excel 函數 (按字母順序) "]
["免費的 Excel 線上訓練"]
{"$rows_empty":10}
[{"$nulls":9},"值"]
[{"$nulls":9},4]
[{"$nulls":9},8]
[{"$nulls":9},{"$f":"SUM(J41:J42)","v":12}]

{"sheet":"函數簡介","index":2,"n_rows":51,"n_cols":7,"rows_kept":51}
["函數簡介"]
["函數讓您能夠執行各種工作，例如執行數學運算、查詢值，或甚至計算日期和時間。讓我們試試看一些方法，使用 SUM 函數將值加總。",null,"水果","數量",null,"肉品","數量"]
["在「水果」的「數量」欄 (儲存格 D7) 底下，輸入 =SUM(D3:D6)，或輸入 =SUM(，然後使用滑鼠選取範圍，並按下 Enter。這會將儲存格 D3、D4、D5 和 D6 中的值加總。答案應該是 170。\n",null,"蘋果",50,null,"牛肉",50]
["現在讓我們試試看 [自動加總]。選取「肉品」欄底下的儲存格 (儲存格 G7)，然後移至 [公式] > [自動加總] > 選取加總。您會看到 Excel 自動輸入公式。按 Enter 加以確認。[自動加總] 功能有所有最常用的函數。\n",null,"橘子",20,null,"雞肉",30]
["使用這個簡單的鍵盤快速鍵。選取儲存格 D15，然後按 Alt =，再按 Enter。這會自動輸入 SUM。",null,"香蕉",60,null,"豬肉",10]
["向下瀏覽以取得更多詳細資料",null,"檸檬",40,null,"魚肉",50]
["祕笈\n使用任何您已經嘗試過的方法來試試看 COUNT 函數。COUNT 函數會計算包含數值之某個範圍中的儲存格數目。",null,"SUM > ",{"$f":"SUM(D3:D6)","v":170},null,"SUM > "]
["下一個步驟"]
["深入了解函數",null,"項目","金額",null,"項目","數量"]
["移至 [公式] 索引標籤，然後瀏覽依類別列出函數的 [函數庫]，例如 [文字]、[日期和時間] 等。[插入函數] 可讓您依名稱搜尋函數，並啟動可協助您建立公式的函數精靈。\n\n當您按下 = 後開始輸入函數名稱時，Excel 會啟動 IntelliSense，這會列出以您輸入之字母做為開頭的所有函數。找到想要的函數時，請按 Tab，而 Excel 會自動完成函數名稱，並為您輸入左括弧。它也會顯示選用和必要的引數。\n\n\n\n現在讓我們看看一些函數的結構。SUM 函數的結構如下：",null,"麵包",50,null,"麵包",50]
["如果 SUM 函數會說話，它會說：「傳回儲存格 D35 到 D38 中的所有值的加總，以及 H 整欄」。SUM 是函數名稱，D35:D38 是第一個範圍引數，這幾乎都是必要的項目，而 H:H 是第二個範圍引數 (以逗號隔開)。現在，讓我們試試看不需要任何引數的公式。\n",null,"甜甜圈",100,null,"甜甜圈",100]
["TODAY 函數傳回今天的日期。它會在 Excel 重新計算時自動更新。",null,"餅乾",40,null,"餅乾",40]
["立即查看\n選取這些儲存格。然後在 Excel 視窗右下角尋找 SUM：顯示在底部列的 170。這稱為狀態列，而且這只是另一種快速尋找合計和有關所選儲存格或範圍的其他詳細資料的方法。 ",null,"蛋糕",50,null,"蛋糕",50]
["要訣詳述\n按兩下此儲存格。您會在尾端看到 100。雖然您可以像這樣在公式中加入數值，但除非必要，我們不建議您這麼做。這稱為「常數」，很容易忘記此數值的存在。建議您改為參照其他儲存格，例如儲存格 F51，以便輕鬆看到此數值，而不會隱藏在公式內。 ",null,"派",20,null,"派",20]
["Web 上的更多資訊",null,"SUM > ",null,null,"COUNT >"]
["全面了解 SUM 函數"]
["使用自動加總來加總數值"]
["全面了解 COUNT 函數"]
["免費的 Excel 線上訓練"]
["回到頁首"]
["下一個步驟"]
{"$rows_empty":12}
[null,null,"水果","金額"]
[null,null,"蘋果",50]
[null,null,"橘子",20]
[null,null,"香蕉",60]
[null,null,"檸檬",40]
[null,null,"SUM > ",{"$f":"SUM(D35:D38)","v":170}]
[]
[]
[]
[]
[null,null,"項目","數量"]
[null,null,"汽車",20]
[null,null,"卡車",10]
[null,null,"自行車",10]
[null,null,"溜冰鞋",40]
[]
[{"$nulls":3},"合計：",null,"其他值","新合計"]
[{"$nulls":3},{"$f":"SUM(D45:D48,100)","v":180},null,100,{"$f":"SUM(D45:D48,F51)","v":180}]

{"sheet":"AVERAGE","index":3,"n_rows":15,"n_cols":7,"rows_kept":15}
["AVERAGE 函數"]
["使用 AVERAGE 函數來取得儲存格範圍中的數值的平均值。",null,"水果","數量",null,"肉品","數量"]
["選取儲存格 D7，然後使用 [自動加總] 來新增 [平均值] 函數。",null,"蘋果",50,null,"牛肉",50]
["現在選取儲存格 G7，然後輸入 =AVERAGE(G3:G6) 以輸入 AVERAGE 函數。 ",null,"橘子",20,null,"雞肉",30]
["在儲存格 D15 中，您可以使用 [自動加總]，或輸入以輸入另一個 [平均值] 函數。 ",null,"香蕉",60,null,"豬肉",10]
["立即查看\n選取任何數值範圍，然後在狀態列中立即查看平均值。\n",null,"檸檬",40,null,"魚肉",50]
["啟用上一個工作表",null,"AVERAGE >",null,null,"AVERAGE >"]
["移至下一個工作表"]
["祕笈\n嘗試在這裡使用 MEDIAN 或 MODE。\n\nMEDIAN 會提供資料集中間的值，而\nMODE 則提供最常出現的值。\n",null,"項目","數量",null,"項目","數量"]
["Web 上的更多資訊連結",null,"麵包",50,null,"麵包",50]
["選取以在 Web 上全面了解 AVERAGE 函數",null,"甜甜圈",100,null,"甜甜圈",100]
["選取以在 Web 上全面了解 MEDIAN 函數",null,"餅乾",40,null,"餅乾",40]
["選取以在 Web 上全面了解 MODE 函數",null,"蛋糕",50,null,"蛋糕",50]
["選取以在 Web 上了解免費的 Excel 訓練",null,"派",20,null,"派",20]
[null,null,"AVERAGE >"]

{"sheet":"MIN 和 MAX","index":4,"n_rows":15,"n_cols":7,"rows_kept":15}
["MIN 和 MAX 函數"]
["使用 MIN 函數來取得儲存格範圍中的最小數值。",null,"水果","數量",null,"肉品","數量"]
["使用 MAX 函數來取得儲存格範圍中的最大數值。",null,"蘋果",50,null,"牛肉",50]
["選取儲存格 D7，然後使用自動加總精靈來新增 [最小值] 函數。\n",null,"橘子",20,null,"雞肉",30]
["現在選取儲存格 G7，然後輸入 =MAX(G3:G6) 以輸入 MAX 函數。\n",null,"香蕉",60,null,"豬肉",10]
["在儲存格 D15 中，您可以使用自動加總精靈，或輸入以輸入 MIN 或 MAX 函數。 \n",null,"檸檬",40,null,"魚肉",50]
["Web 上的更多資訊\n",null,"MIN >",null,null,"MAX >"]
["全面了解 MIN 函數"]
["全面了解 MAX 函數",null,"項目","數量",null,"項目","數量"]
["免費的 Excel 線上訓練",null,"麵包",50,null,"麵包",50]
["不可不知\n您可以在多個範圍或多個值中使用 MIN 或 MAX，來顯示大於或小於這些值的值，例如 =MIN(A1:A10,B1:B10) 或 =MAX(A1:A10,B1)，其中 B1 包含閾值 (例如 10)，在這種情況下，公式不會傳回小於 10 的結果。\n",null,"甜甜圈",100,null,"甜甜圈",100]
[null,null,"餅乾",40,null,"餅乾",40]
[null,null,"蛋糕",50,null,"蛋糕",50]
[null,null,"派",20,null,"派",20]
[null,null,"MIN 或 MAX >",{"$nulls":3},{"$f":"MIN(G10:G14,10)","v":10}]

{"sheet":"日期和時間","index":5,"n_rows":47,"n_cols":6,"rows_kept":47,"merged":[[4,2,4,3],[26,2,26,3],[30,2,30,3],[44,2,44,3]]}
["日期函數"]
["Excel 可以根據您電腦的地區設定提供目前的日期。您也可以加上或減去日期。"]
["查看提供今天的日期的 TODAY 函數。這些是即時、動態的函數，因此當您明天開啟活頁簿時，它會變成明天的日期。在儲存格 D6 中輸入 =TODAY()。 \n"]
["減去日期：以 MM/DD/YY 格式在儲存格 D7 中輸入您下一次的生日，然後在儲存格 D8 中使用 =D7-D6，看看 Excel 告訴您距離您下一次的生日還有多少天。\n"]
["加上日期：假設您想要知道帳單的到期日，或是何時需要歸還圖書館的書籍。您可以對某個日期加上天數來了解這項資訊。在儲存格 D10 中，輸入隨機的天數。在儲存格 D11 中，我們已新增 =D6+D10 來計算到期日 (從今天起算)。\n",null,"日期函數"]
["不可不知\nExcel 會根據天數保存日期和時間 (從 1900 年 1 月 1 日起算)。時間會根據分鐘以一天的分數部分保存。因此，2017 年 1 月 1 日下午 12:30 其實是儲存為 42736.5208。如果 [時間] 或 [日期] 以像這樣的數值形式出現，您可以按 Ctrl+1 > [數值] > 選取 [日期] 或 [時間] 格式。 ",null,"今天的日期：",null,null,{"$f":"IF(D6=TODAY(),\"答對了!\",\"\")","v":""}]
["要訣詳述\n如果您不想讓 Excel 因您還沒輸入生日而顯示負數，您可以像這樣使用 IF 函數：=IF(D7=\"\",\"\",D7-D6)，這表示「如果 D7 不等於任何值，則不顯示任何值，相反則顯示 D7 減去 D6」。\n",null,"您的生日："]
["時間函數",null,"您生日之前的天數：",{"$f":"D7-D6","v":0}]
["Excel 可以根據您電腦的地區設定提供目前的時間。您也可以加上或減去時間。例如，您可能需要追蹤員工每週工作多少時數，以及計算其薪水和加班費。\n"]
["在儲存格 D28 中，輸入 =NOW()，這會提供目前的時間，而且會在 Excel 每次計算時更新。如果您需要變更 [時間] 格式，您可以移至 Ctrl+1 > [數值] > [時間] > 選取您想要的格式。\n",null,"寬限期天數："]
["將時間之間的時數加總：在儲存格 D36 中，我們已輸入 =((D35-D32)-(D34-D33))*24，這會計算某個人的開始和結束時間，然後減去他的午休時間。公式結尾的 *24 會將 Excel 顯示的一天的分數部分轉換為小時。不過您必須將儲存格的格式設定為 [數值]。若要這麼做，請移至 [常用] > [格式] > [儲存格] (Ctrl+1) > [數值] > [數值] > 2 小數位數。\n\n",null,"帳單到期日：",{"$f":"D6+D10","v":"00:00:00"}]
["如果此公式會說話，它會說：「取得「下班」並用「上班」減去「下班」，然後減去「午休開始」/「午休結束」時間，再將它們乘以 24，以將 Excel 的分數時間轉換為小時」，或 =((上班 - 下班)-(午休結束 - 午休開始))*24。"]
["上一個"]
["下一個"]
["Web 上的更多資訊"]
["全面了解 TODAY 函數"]
["全面了解 NOW 函數"]
["全面了解 DATE 函數"]
["免費的 Excel 線上訓練"]
{"$rows_empty":7}
[null,null,"時間函數"]
[null,null,"目前時間："]
[]
[]
[null,null,"每日工時"]
[null,null,"上班：","08:00:00"]
[null,null,"午休開始：","12:00:00"]
[null,null,"午休結束：","13:00:00"]
[null,null,"下班：","17:00:00"]
[null,null,"總工時：",{"$f":"((D35-D32)-(D34-D33))*24","v":8.000000000000002}]
{"$rows_empty":8}
[null,null,"靜態日期和時間"]
[null,null,"日期：","2017-09-27"]
[null,null,"時間：","08:52:00"]

{"sheet":"合併文字和數值","index":6,"n_rows":37,"n_cols":6,"rows_kept":37,"merged":[[26,2,26,3],[30,2,30,3],[34,2,34,3]]}
["合併來自不同儲存格的文字"]
["在 Excel 中，您可能會經常想要合併位於不同儲存格中的文字。以下是一個包含名字和姓氏的常見範例，而我們想將它們合併為「名字，姓氏」或「全名」。所幸，Excel 可讓我們使用 & 符號 (可使用 Shift+7 輸入) 來執行此操作。\n",null,"名字","姓氏","姓氏，名字","全名"]
["在儲存格 E3 中，輸入 =D3&C3 以合併姓氏和名字。 \n",null,"Nancy","Smith",{"$f":"D3&\", \"&C3","v":"Smith, Nancy"},{"$f":"C3&\" \"&D3","v":"Nancy Smith"}]
["但SmithNancy看起來不太對。我們需要加上逗號和空格。若要這麼做，我們需要使用引號來建立新文字字串。這次，輸入 =D3&\", \"&C3。&\", \"& 部分可讓我們將逗號及空格與儲存格中的文字合併。\n",null,"Andy","North"]
["若要建立全名，我們需要合併名字和姓氏，但使用空格，而不是逗號。在 F3 中，輸入 =C3&\" \"&D3。\n",null,"Jan","Kotas"]
["向下瀏覽以取得更多詳細資料",null,"Mariya","Jones"]
["下一個",null,"Steven","Thorpe"]
["同時使用文字和數值",null,"Michael","Neipper"]
["現在我們將使用 & 合併文字和數值，而不只是文字和文字。\n\n看看儲存格 C28:D29。看到日期和時間位於個別的儲存格了嗎？您可以使用 & 符號將它們合併在一起，就像在儲存格 C32:C33 看到的結果一樣，但這看起來不太對。很可惜，Excel 不知道您想要如何設定數值的格式，因此將它們分成其基本格式，在此情況下則顯示數列日期。我們需要明確告訴 Excel 如何設定公式的數值部分的格式，這樣它才會依您想要的方式顯示產生的文字字串。您可以使用 TEXT 函數和格式代碼來執行此操作。",null,"Robert","Zare"]
["在儲存格 C36 中，輸入 =C28&\" \"&TEXT(D28,\"YYYY年M月D日\")。YYYY年M月D日是「年/月/日」的中文格式代碼，例如2017年9月25日。\n",null,"Yvonne","McKay"]
["在儲存格 C37 中，輸入=C29&\" \"&TEXT(D29,\"H:MM\")。H:MM是「小時:分鐘」的中文格式代碼，例如 1:30。\n\n"]
["立即查看\n公式 (尤其是大型公式) 有時可能很難閱讀，但您可以像這樣將它們分成多個部分並加上空格：\n\n=C28 & \" \" & TEXT(D28,\"YYYY年M月D日\")"]
["值得探究\n如果您不知道要使用哪個格式代碼，您可以使用 Ctrl+1 > [數值] 來依您想要的方式設定任何儲存格的格式。然後選取 [自訂] 選項。您可以複製重新顯示在您的公式的格式代碼。"]
["Web 上的更多資訊"]
["全面了解 TEXT 函數"]
["合併文字和數值"]
["免費的 Excel 線上訓練"]
{"$rows_empty":9}
[null,null,"使用文字和數值"]
[null,null,"今天的日期：",{"$f":"TODAY()","v":"2021-10-19"}]
[null,null,"目前時間：",{"$f":"NOW()","v":44488.493988773145}]
[]
[null,null,"合併文字和數值"]
[null,null,{"$f":"C28&\" \"&D28","v":"今天的日期： 44488"}]
[null,null,{"$f":"C29&\" \"&D29","v":"目前時間： 44488.4939887731"}]
[]
[null,null,"設定文字和數值的格式"]
[null,null,{"$f":"C28 &\" \"& TEXT(D28,\"YYYY年M月D日\")","v":"今天的日期： 2021年10月19日"}]
[null,null,{"$f":"C29&\" \"&TEXT(D29,\"H:MM\")","v":"目前時間： 11:51"}]

{"sheet":"IF 陳述式","index":7,"n_rows":37,"n_cols":6,"rows_kept":37,"merged":[[7,2,7,3]]}
["IF 陳述式"]
["IF 陳述式可讓您在條件之間進行邏輯比較。IF 陳述式通常表示如果一項條件為 True，則執行某項操作，反之則執行其他操作。公式可以傳回文字、值或甚至更多計算。"]
["在儲存格 D9 中輸入 =IF(C9=\"蘋果\",TRUE,FALSE)。正確答案為 TRUE。 \n"]
["將 D9 複製到 D10。此處的答案應為 FALSE，因為橘子不是蘋果。\n"]
["請查看儲存格 D12 中的公式，嘗試另一個範例。我們讓您從 =IF(C12<100,\"小於 100\",\"大於或等於 100\") 開始練習。如果您在儲存格 C12 中輸入大於 100 的數值，會發生什麼情況？\n"]
["要訣詳述\nTRUE 和 FALSE 不同於 Excel 公式中的其他文字，它們不需要加上引號，而且 Excel 會自動將它們轉為大寫。數值也不需要加上引號。一般文字 (例如「是」或「否」) 不需要像這樣加上引號：\n=IF(C9=\"蘋果\",\"是\",\"否\")"]
["向下瀏覽以取得更多詳細資料"]
["下一個",null,"IF 陳述式"]
["使用另一個函數的 IF 陳述式",null,"蘋果"]
["如果符合某個條件，IF 陳述式也可以強制執行其他計算。我們將在這裡評估某個儲存格，看看是否應收取營業稅，而且如果條件為 True，則進行計算。\n",null,"橘子"]
["在儲存格 F33 中，我們已輸入 =IF(E33=\"是\",F31*營業稅,0)，其中已將「營業稅」設為含有 0.0825 值的具名範圍。我們的公式表示如果儲存格 E33 等於「是」，則將儲存格 F31 乘以「營業稅」，相反則傳回 0。\n\n嘗試在儲存格 E33 中將「是」變更為「否」，看看計算的變化。"]
["接下來，我們已新增 IF 陳述式以視需要計算運費。在儲存格 F35 中，您會看到 =IF(E35=\"是\",SUM(D28:D29)*1.25,0)。這表示「如果儲存格 E35 為「是」，則取得以上表格中的「數量」欄的加總，然後將它乘以 1.25，相反則傳回 0」。\n",null,50,{"$f":"IF(C12<100,\"小於100\",\"大於或等於100\")","v":"小於100"}]
["接下來，將儲存格 F35 的公式中的 1.25 變更為「運費」。當您開始輸入時，Excel 的自動修正功能應該會為您找到它。找到時，請按 Tab 來輸入它。這是具名範圍，而我們是從 [公式] > [定義名稱] 輸入它。現在，如果您需要變更運費，您只需要在同一個位置執行，而且您可以在活頁簿中的任何位置使用「運費」名稱。\n\n"]
["不可不知\n建立公式時，Excel 會自動在公式中所參照的任何範圍周圍加上彩色框線，而公式中對應的範圍將會是相同的色彩。如果您選取儲存格 F33 並按下 F2 來編輯公式，就會看見此情形。"]
["專家級祕訣\n具名範圍可讓您在單一位置中定義期限或值，然後在整個活頁簿中重新使用它們。您可以移至 [公式] > [名稱管理員]，以查看此活頁簿中的所有具名範圍。按一下這裡以深入了解。\n"]
["上一個"]
["下一個"]
["Web 上的更多資訊"]
["全面了解 IF 函數"]
["全面了解 IFS 函數"]
["進階 IF 陳述式"]
["免費的 Excel 線上訓練"]
[]
[]
[]
[]
[null,null,"項目","數量","成本","合計"]
[null,null,"小工具",2,{"v":9.760711585683554,"d":"NT$9.76"},{"$f":"'IF 陳述式'!$E$28:$E$29*'IF 陳述式'!$D$28:$D$29","v":{"v":19.521423171367108,"d":"NT$19.52"}}]
[null,null,"小玩意",3,{"v":3.4189202461080024,"d":"NT$3.42"},{"v":10.256760738324008,"d":"NT$10.26"}]
[]
[{"$nulls":3},"小計",{"$f":"SUM('IF 陳述式'!$E$28:$E$29)","v":{"v":13.179631831791557,"d":"NT$13.18"}},{"$f":"SUM('IF 陳述式'!F28:F29)","v":{"v":29.778183909691116,"d":"NT$29.78"}}]
[]
[{"$nulls":3},"營業稅？","是",{"$f":"IF(E33=\"是\",F31*營業稅,0)","v":{"v":2.456700172549517,"d":"NT$2.46"}}]
[]
[{"$nulls":3},"運費？","是",{"$f":"IF(E35=\"是\",SUM(D28:D29)*1.25,0)","v":{"v":6.25,"d":"NT$6.25"}}]
[]
[{"$nulls":3},"合計",null,{"$f":"SUM(F33,F31,F35)","v":{"v":38.48488408224063,"d":"NT$38.48"}}]

{"sheet":"VLOOKUP","index":8,"n_rows":43,"n_cols":7,"rows_kept":43}
["VLOOKUP"]
["VLOOKUP 是 Excel 中最廣泛使用的函數之一 (也是我們最愛的項目之一)。VLOOKUP 可讓您查詢左邊欄中的值，然後如果找到相符項目，則在右邊的另一個欄中傳回資訊。VLOOKUP 表示：\n"]
["=VLOOKUP(A1,B:C,2,FALSE)"]
["您要尋找什麼內容？"]
["如果找到了，您要在右邊的幾欄取得值？"]
["您要在哪個位置尋找它？"]
["您想要的是完全符合，還是大約符合？"]
["在儲存格 D22 中，輸入 =VLOOKUP(C22,C17:D20,2,FALSE)。「蘋果」的正確答案為 50。VLOOKUP 尋找「蘋果」、找到它，然後移至右邊的另一欄並傳回數量。\n\n"]
["現在請親自在儲存格 G22 的「肉品」區段中試試看。最後應該顯示 =VLOOKUP(F22,F17:G20,2,FALSE)。\n\n"]
["試試看\n嘗試從下拉式清單選取不同的項目。您會看到結果儲存格使用新值自己立即更新。"]
["向下瀏覽以取得更多詳細資料"]
["下一個"]
["VLOOKUP 和 #N/A"]
["您總是會遇到 VLOOKUP 找不到您要求的內容的情況，而且會傳回錯誤 (#N/A)。有時候，這是因為查詢值不存在，或者可能因為參照儲存格還沒有值。\n"]
["如果您知道查詢值存在，但想要在查詢儲存格為空白時隱藏錯誤，您可以使用 IF 陳述式。在此情況下，我們會像這樣在儲存格 D43 中圍繞現有的 VLOOKUP 公式：\n\n=IF(C43=\"\",\"\",VLOOKUP(C43,C37:D41,2,FALSE))\n\n這表示如果儲存格 C43 不等於任何值 (\"\")，就不會傳回任何內容，相反則傳回 VLOOKUP 的結果。請注意公式結尾的第二個右括弧。這會完成 IF 陳述式。\n"]
["如果您不確定您的查詢值是否存在，但您仍想要隱藏 #N/A 錯誤，您可以在儲存格 G43 中使用稱為 IFERROR 的錯誤處理函數：=IFERROR(VLOOKUP(F43,F37:G41,2,FALSE),\"\")。IFERROR 表示如果 VLOOKUP 傳回有效結果，則顯示該結果，相反則不顯示任何結果 (\"\")。我們在這裡不顯示任何結果 (\"\")，但您也可以使用數值 (0、1、2 等)，或是使用文字 (例如「公式不正確」。\n",null,"水果","數量",null,"肉品","數量"]
["要訣詳述\nIFERROR 是所謂的總括錯誤處理常式，也就是說，它會隱藏公式可能傳回的任何錯誤。如果 Excel 通知您公式有合法錯誤需要修正，這可能會導致問題。\n\n基本原則是，在您完全確定公式可以正常運作之前，請不要將錯誤處理常式新增到公式中。",null,"蘋果",50,null,"牛肉",50]
["上一個",null,"橘子",20,null,"雞肉",30]
["下一個",null,"香蕉",60,null,"豬肉",10]
["Web 上的更多資訊",null,"檸檬",40,null,"魚肉",50]
["全面了解 VLOOKUP 函數"]
["全面了解 INDEX/MATCH 函數",null,"蘋果",null,null,"豬肉"]
["全面了解 IFERROR 函數"]
["使用樞紐分析表來分析工作表的資料"]
["免費的 Excel 線上訓練"]
{"$rows_empty":9}
[null,null,"如果儲存格 D42 中的 SUM 函數會說話，它會說：將儲存格 D38、D39、D40 和 D41 中的值加總。"]
[null,null,"項目","數量",null,"項目","數量"]
[null,null,"麵包",50,null,"麵包",50]
[null,null,"甜甜圈",100,null,"甜甜圈",100]
[null,null,"餅乾",40,null,"餅乾",40]
[null,null,"蛋糕",50,null,"蛋糕",50]
[null,null,"派",20,null,"派",20]
[]
[{"$nulls":3},{"$f":"VLOOKUP(C43,C37:D41,2,FALSE)","v":{"$error":"#N/A"}},null,"糕點",{"$f":"IFERROR(VLOOKUP(F43,F37:G41,2,FALSE),\"\")","v":""}]

{"sheet":"條件式函數","index":9,"n_rows":123,"n_cols":34,"rows_kept":123}
["條件式函數 - SUMIF"]
["條件式函數可讓您根據指定的條件或指定的準則，取得加總、平均值、計數，或取得某個範圍的最小值或最大值。例如，清單內的所有水果之中有幾顆蘋果？或者，有多少佛羅里達類型的橘子？",null,"水果","數量",null,"水果","類型","數量",{"$nulls":17},"水果",null,"蘋果",null,"橘子",null,"香蕉",null,"檸檬"]
["SUMIF 可讓您根據在另一個範圍中尋找的特定準則，在一個範圍執行加總，例如您有幾顆蘋果。選取儲存格 D17，然後輸入 =SUMIF(C3:C14,C17,D3:D14)。SUMIF 的結構如下：",null,"蘋果",50,null,"蘋果","富士",50,{"$nulls":17},"蘋果",null,"富士",null,"佛羅里達",null,"香芽蕉",null,"粗皮"]
["=SUMIF(C3:C14,C17,D3:D4)",null,"橘子",20,null,"橘子","佛羅里達",20,{"$nulls":17},"橘子",null,"脆蜜",null,"臍橙",null,"粉蕉",null,"優利卡"]
["您要查看哪個範圍？",null,"香蕉",60,null,"香蕉","香芽蕉",60,{"$nulls":17},"香蕉"]
["您要尋找哪個值 (文字或數值)？",null,"檸檬",40,null,"檸檬","粗皮",40,{"$nulls":17},"檸檬"]
["針對找到的每個相符項目，您要在哪個範圍中執行加總？",null,"蘋果",50,null,"蘋果","脆蜜",50]
["SUMIFS 與 SUMIF 相同，但它可讓您使用多個準則。因此，在此範例中，您可以尋找「水果」和「類型」，而不只是「水果」。選取儲存格 H17，然後輸入 =SUMIFS(H3:H14,F3:F14,F17,G3:G14,G17)。SUMIFS 的結構如下：\n",null,"橘子",20,null,"橘子","臍橙",20]
["=SUMIFS(H3:H14,F3:F14,F17,G3:G14,G17)",null,"香蕉",60,null,"香蕉","粉蕉",60]
["您要加總哪個範圍？",null,"檸檬",40,null,"檸檬","優利卡",40]
["這是尋找相符項目的第一個範圍",null,"蘋果",50,null,"蘋果","脆蜜",50]
["這是第一個相符的準則",null,"橘子",20,null,"橘子","臍橙",20]
["這是尋找相符項目的第二個範圍",null,"香蕉",60,null,"香蕉","香芽蕉",60]
["這是第二個相符的準則",null,"檸檬",40,null,"檸檬","優利卡",40]
["專家級祕訣\n每個「水果」和「類型」儲存格都有下拉式清單，您可以從中選取不同的水果。試試看，並且關注公式自動更新。"]
["向下瀏覽以取得更多詳細資料",null,"水果","SUMIF",null,"水果","類型","SUMIFS"]
["下一個步驟",null,"蘋果",null,null,"橘子","佛羅里達"]
["條件式函數 - COUNTIF"]
["COUNTIF 和 COUNTIFS 可讓您根據您指定的準則，計算某個範圍中的值。它們與其他的 IF 和 IFS 函數稍微不同，它們只有一個準則範圍和準則。它們不會評估一個範圍，然後查詢另一個範圍進行彙總。"]
["選取儲存格 D64，然後輸入 =COUNTIF(C50:C61,C64)。COUNTIF 的結構如下："]
["=COUNTIF(C50:C61,C64)"]
["您要查看哪個範圍？"]
["您要尋找哪個值 (文字或數值)？"]
["COUNTIFS 與 SUMIF 相同，但它可讓您使用多個準則。因此，在此範例中，您可以尋找「水果」和「類型」，而不只是「水果」。選取儲存格 H64，然後輸入 =COUNTIFS(F50:F61,F64,G50:G61,G64)。COUNTIFS 的結構如下：\n"]
["=COUNTIFS(F50:F61,F64,G50:G61,G64)"]
["這是執行計數的第一個範圍"]
["這是第一個相符的準則"]
["這是執行計數的第二個範圍"]
["這是第二個相符的準則"]
["向下瀏覽以取得更多詳細資料"]
["下一個"]
["更多條件式函數"]
["您已經看過 SUMIF、SUMIFS、COUNTIF 和 COUNTIFS。您現在可以使用其他函數 (例如 AVERAGEIF/S、MAXIFS、MINIFS) 嘗試您自己的組合。它們都有相同的結構，因此撰寫完一個公式後，就可以直接用您想要的函數來取代函數名稱。我們已撰寫您在儲存格 E106 中會需要的所有函數，因此您可以複製/貼上這些函數，或嘗試自行練習輸入這些函數。\n\nSUMIF\t=SUMIF(C92:C103,C106,E92:E103)\nSUMIFS\t=SUMIFS(E92:E103,C92:C103,C106,D92:D103,D106)\nAVERAGEIF\t=AVERAGEIF(C92:C103,C106,E92:E103)\nAVERAGEIFS\t=AVERAGEIFS(E92:E103,C92:C103,C106,D92:D103,D106)\nCOUNTIF\t=COUNTIF(C92:C103,C106)\nCOUNTIFS\t=COUNTIFS(C92:C103,C106,D92:D103,D106)\nMAXIFS\t=MAXIFS(E92:E103,C92:C103,C106,D92:D103,D106)\nMINIFS\t=MINIFS(E92:E103,C92:C103,C106,D92:D103,D106)\n"]
["向下瀏覽以取得更多詳細資料"]
["下一個"]
["使用值引數的 SUMIF"]
["以下是使用大於 (>) 的 SUMIF 函數範例，尋找大於指定數量的所有值："]
[{"$f":"SUMIF(D118:D122,\">=50\")","v":200}]
["依據以下準則將某些數值加總："]
["....查看這些儲存格...\n "]
["...如果值大於 50，進行加總。\n "]
["注意：如果您撰寫了大量條件式公式，建議您使用樞紐分析表。如需詳細資訊，請參閱這篇樞紐分析表文章。"]
["Web 上的更多資訊"]
["全面了解 SUMIF 函數"]
["全面了解 SUMIFS 函數"]
["全面了解 COUNTIF 函數"]
["全面了解 COUNTIFS 函數"]
["全面了解 AVERAGEIF 函數"]
["全面了解 AVERAGEIFS 函數",null,"水果","數量",null,"水果","類型","數量"]
["全面了解 MINIFS 函數",null,"蘋果",50,null,"蘋果","富士",50]
["全面了解 MAXIFS 函數",null,"橘子",20,null,"橘子","佛羅里達",20]
["建立下拉式清單",null,"香蕉",60,null,"香蕉","香芽蕉",60]
["免費的 Excel 線上訓練",null,"檸檬",40,null,"檸檬","粗皮",40]
["回到頁首",null,"蘋果",50,null,"蘋果","脆蜜",50]
["下一個",null,"橘子",20,null,"橘子","臍橙",20]
[null,null,"香蕉",60,null,"香蕉","粉蕉",60]
[null,null,"檸檬",40,null,"檸檬","優利卡",40]
[null,null,"蘋果",50,null,"蘋果","脆蜜",50]
[null,null,"橘子",20,null,"橘子","臍橙",20]
[null,null,"香蕉",60,null,"香蕉","香芽蕉",60]
[null,null,"檸檬",40,null,"檸檬","優利卡",40]
[]
[null,null,"水果","COUNTIF",null,"水果","類型","COUNTIFS"]
[null,null,"蘋果",{"$f":"COUNTIF(C50:C61,C64)","v":3},null,"橘子","佛羅里達",{"$f":"COUNTIFS(F50:F61,F64,G50:G61,G64)","v":1}]
{"$rows_empty":26}
[null,null,"水果","類型","數量"]
[null,null,"蘋果","富士",50]
[null,null,"橘子","佛羅里達",20]
[null,null,"香蕉","香芽蕉",60]
[null,null,"檸檬","粗皮",40]
[null,null,"蘋果","脆蜜",50]
[null,null,"橘子","臍橙",20]
[null,null,"香蕉","粉蕉",60]
[null,null,"檸檬","優利卡",40]
[null,null,"蘋果","脆蜜",50]
[null,null,"橘子","臍橙",20]
[null,null,"香蕉","香芽蕉",60]
[null,null,"檸檬","優利卡",40]
[]
[null,null,"水果","類型","試試看"]
[null,null,"檸檬","優利卡",{"$f":"AVERAGEIFS(E92:E103,C92:C103,C106,D92:D103,D106)","v":40}]
{"$rows_empty":10}
[null,null,"項目","數量"]
[null,null,"麵包",50]
[null,null,"甜甜圈",100]
[null,null,"餅乾",40]
[null,null,"蛋糕",50]
[null,null,"派",20]
[{"$nulls":3},{"$f":"SUMIF(D118:D122,\">=50\")","v":200}]

{"sheet":"函數精靈","index":10,"n_rows":14,"n_cols":4,"rows_kept":14}
["讓函數精靈引導您"]
["如果您知道想要的函數名稱，但您不確定如何建立函數，您可以使用函數精靈來協助您。\n"]
["選取儲存格 D10，然後移至 [公式] > [插入函數] > 在 [搜尋函數] 方塊中輸入 VLOOKUP，再按 [開始]。當您看到 VLOOKUP 強調顯示時，請按一下底部的 [確定]。當您選取清單中的函數時，Excel 會顯示其語法。\n"]
["接下來，在其個別的文字方塊中輸入函數引數。當您逐一輸入時，Excel 會進行評估，並顯示其結果，以及在底部顯示最終結果。當您輸入每個區段時，每個引數的準則會列於表單的底部。完成時，請按 [確定]，而 Excel 會為您輸入公式。\n\n\n",null,"水果","數量"]
["立即查看\n最後應該顯示 =VLOOKUP(C10,C5:D8,2,FALSE)",null,"蘋果",50]
["不可不知\n您可以輸入儲存格和範圍參照，或使用滑鼠選取它們。",null,"橘子",20]
["不可不知\n當您輸入每個引數的區段時，引數的描述會顯示在表單的底部，以及公式結果的上方。\n",null,"香蕉",60]
["上一個",null,"檸檬",40]
["下一個"]
["Web 上的更多資訊",null,"蘋果",{"$f":"VLOOKUP(C10,C5:D8,2,FALSE)","v":50}]
["Excel 中的公式概觀"]
["Excel 函數 (依類別)"]
["Excel 函數 (按字母順序)"]
["免費的 Excel 線上訓練"]

{"sheet":"公式錯誤","index":11,"n_rows":36,"n_cols":4,"rows_kept":36}
["修正公式錯誤"]
["有時候難免會遇到有錯誤的公式，而 Excel 會顯示  #ErrorName。錯誤非常有用，因為錯誤會指出無法正常運作的某個項目，但是錯誤可能很難修正。所幸，有一些能夠協助您追蹤錯誤來源並加以修正的選項。\n"]
["錯誤檢查：移至 [公式] > [錯誤檢查]。這會載入對話方塊，說明特定錯誤的一般原因。在儲存格 D9 中，導致 #N/A 錯誤的原因是沒有與「蘋果」相符的值。您可以使用確實存在的值來修正此問題、使用 IFERROR 來隱藏錯誤，或忽略錯誤，因為您知道錯誤會在您使用確實存在的值時消失。\n",null,"水果","金額"]
["如果您按一下 [此錯誤的說明]，將會開啟錯誤訊息的相關特定說明主題。如果您按一下 [顯示計算步驟]，將會載入 [評估值公式] 對話方塊。\n",null,"蘋果",50]
["每當您按一下 [評估值] 時，Excel 會逐步執行公式 (一次一個區段)。這不一定會告訴您發生錯誤的原因，但會指出錯誤所在的位置。從這裡查看說明主題來推算公式哪裡出錯了。\n",null,"橘子",20]
["試試看\n這裡發生什麼問題？提示：我們正嘗試將所有項目 [加總]。",null,"香蕉",60]
["不可不知\n按一下 [選項] 可讓您設定顯示或忽略 Excel 中的錯誤時的規則。\n",null,"檸檬",40]
["上一個"]
["下一個",null,"蘋 果",{"$f":"VLOOKUP(C9,C3:D7,2,FALSE)","v":{"$error":"#N/A"}}]
["Web 上的更多資訊"]
["偵測公式中的錯誤"]
["如何避免公式出錯"]
["評估巢狀公式 (一次一個步驟)"]
["免費的 Excel 線上訓練"]
{"$rows_empty":15}
[null,null,"水果","數量"]
[null,null,"蘋果",50]
[null,null,"橘子",20]
[null,null,"香蕉",60]
[null,null,"檸檬",40]
[]
[null,null,"合計",{"$f":"sume(D31:D34)","v":{"$error":"#NAME?"}}]

{"sheet":"深入了解","index":12,"n_rows":5,"n_cols":1,"rows_kept":5}
["對 Excel 有其他問題嗎？"]
["按 ALT+Q，然後輸入您想了解的內容。"]
["請繼續進行。還有更多 Excel 的相關知識："]
["社群：提出問題並與其他 Excel 粉絲交流互動。\n"]
["還有什麼新功能？\nOffice 365 訂閱者會持續取得更新和新功能。\n\n"]